bitfinex/quotes_BTCUSD_20250218
["timestamp","ask_amount","ask_price","bid_price","bid_amount"]
[1739898241541,0.15801,94931.0,94924.0,0.10350365]
[1739898241877,0.158009,94932.0,94925.0,0.158019]
[1739898242056,0.0003402,94933.0,94925.0,0.10250365]
[1739898242283,0.158012,94930.0,94925.0,0.10250365]
[1739898242436,0.158009,94931.0,94925.0,0.10250365]
[1739898242635,0.158009,94931.0,94925.0,0.26052165]
[1739898242888,0.191077,94932.0,94925.0,0.10250365]
[1739898243165,0.158017,94926.0,94925.0,0.10250365]
[1739898243374,0.158014,94928.0,94925.0,0.10250365]
[1739898243575,0.158012,94930.0,94925.0,0.10250365]
[1739898243898,0.0003402,94933.0,94925.0,0.14529222]
[1739898244528,0.158007,94932.0,94926.0,0.158016]
[1739898244732,0.0003402,94933.0,94925.0,0.14529222]
[1739898244887,0.158011,94930.0,94925.0,0.14529222]
[1739898245093,0.158012,94930.0,94925.0,0.10350365]
[1739898245703,0.158012,94930.0,94926.0,0.001]
[1739898245907,0.210678,94932.0,94926.0,0.001]
[1739898246116,0.158009,94931.0,94926.0,0.001]
[1739898246296,0.01684611,94933.0,94926.0,0.159017]
[1739898246500,0.01684611,94933.0,94925.0,0.10250365]
[1739898246719,0.158013,94929.0,94925.0,0.10250365]
[1739898246967,0.210679,94931.0,94926.0,0.001]
[1739898247139,0.22752111,94933.0,94926.0,0.001]
[1739898247353,0.15801,94931.0,94926.0,0.001]
[1739898247550,0.01684611,94933.0,94926.0,0.001]
[1739898247926,0.15801,94931.0,94926.0,0.159017]
[1739898248125,0.158014,94929.0,94926.0,0.001]
[1739898248331,0.158012,94930.0,94926.0,0.001]
[1739898248767,0.158012,94930.0,94925.0,0.26052165]
[1739898248975,0.158012,94929.0,94925.0,0.10250365]
[1739898249405,0.158011,94930.0,94925.0,0.26052265]
[1739898249613,0.158026,94921.0,94920.0,0.32538206]
[1739898250468,0.17453371,94921.0,94920.0,0.32538206]
[1739898251512,0.32453371,94921.0,94920.0,0.32538206]
[1739898251729,5.26325071,94921.0,94920.0,0.32538206]
[1739898251931,0.158031,94918.0,94896.0,0.0459]
[1739898252184,5.09802382,94918.0,94896.0,0.0459]
[1739898252451,5.096748,94918.0,94896.0,0.0459]
[1739898252695,3.385631,94918.0,94896.0,0.0459]
[1739898253170,1.624731,94918.0,94896.0,0.0459]
[1739898253415,1.532531,94918.0,94896.0,0.0459]
[1739898253677,0.291231,94918.0,94906.0,0.15866271]
[1739898253941,0.23212169,94921.0,94906.0,0.15866271]
[1739898253942,0.02142069,94921.0,94906.0,0.00061171]
[1739898254176,0.02142069,94921.0,94917.0,0.0011702]
[1739898254427,0.210683,94929.0,94917.0,0.0011702]
[1739898254669,4.7669,94928.0,94904.0,0.14333844]
[1739898254920,0.158051,94906.0,94905.0,0.10250365]
[1739898255159,0.158051,94906.0,94897.0,0.210754]
[1739898255160,0.00127582,94919.0,94898.0,0.0775]
[1739898255373,0.00127582,94919.0,94909.0,0.158044]
[1739898255374,0.158035,94916.0,94909.0,0.158044]
[1739898255602,0.210699,94922.0,94917.0,0.0011702]
[1739898255806,0.210697,94923.0,94917.0,0.0001702]
[1739898256010,0.158031,94918.0,94917.0,0.0001702]
[1739898256817,0.158031,94918.0,94917.0,0.0011702]
[1739898258400,0.158031,94918.0,94917.0,0.0041702]
[1739898258540,0.158031,94918.0,94917.0,0.0001702]
[1739898258741,0.1799783,94918.0,94917.0,0.0001702]
[1739898258974,0.308031,94918.0,94917.0,0.0011702]
[1739898259172,5.246748,94918.0,94917.0,0.0011702]
[1739898259743,2.074931,94918.0,94917.0,0.0001702]
[1739898260062,2.074931,94918.0,94917.0,0.0011702]
[1739898260272,1.968631,94918.0,94917.0,0.0001702]
[1739898260474,1.915431,94918.0,94917.0,0.0001702]
[1739898260682,1.856231,94918.0,94917.0,0.0001702]
[1739898262114,1.640831,94918.0,94917.0,0.0001702]
[1739898262325,1.555531,94918.0,94917.0,0.0001702]
[1739898262532,1.6661409,94918.0,94917.0,0.0001702]
[1739898262740,0.158071,94894.0,94893.0,0.32538206]
[1739898263999,0.15818733,94894.0,94893.0,0.32538206]
[1739898264635,0.158074,94892.0,94891.0,0.0001701]
[1739898264850,0.308074,94892.0,94891.0,0.0001701]
[1739898265048,5.246791,94892.0,94891.0,0.0001701]
[1739898265258,3.006574,94892.0,94891.0,0.0001701]
[1739898265779,3.01740289,94892.0,94891.0,0.0001701]
[1739898265986,1.96031671,94892.0,94891.0,0.0021701]
[1739898266102,1.92161671,94892.0,94891.0,0.0021701]
[1739898266320,1.71041671,94892.0,94891.0,0.0001701]
[1739898266712,1.71041671,94892.0,94891.0,0.0021701]
[1739898267145,0.17734271,94892.0,94891.0,0.0021701]
[1739898267352,0.02734271,94892.0,94891.0,0.10556491]
[1739898267568,0.02734271,94892.0,94891.0,0.0842701]
[1739898267789,0.18541671,94892.0,94891.0,0.0842701]
[1739898268012,0.02734271,94892.0,94891.0,0.0822701]
[1739898268196,0.02734271,94892.0,94891.0,0.0842701]
[1739898268732,0.02734271,94892.0,94891.0,0.0872701]
[1739898268944,0.02734271,94892.0,94891.0,0.17888311]
[1739898269200,0.01082889,94892.0,94891.0,0.2863461]
[1739898269423,0.00011633,94894.0,94891.0,0.1322701]
[1739898270243,0.00011633,94894.0,94893.0,0.158072]
[1739898270595,0.00011633,94894.0,94893.0,0.26057565]
[1739898270811,0.00011633,94894.0,94893.0,0.16286483]
[1739898271217,0.00011633,94894.0,94893.0,0.10250365]
[1739898271602,0.00011633,94894.0,94893.0,0.26057565]
[1739898271828,0.00011633,94894.0,94893.0,0.10750365]
[1739898272030,0.00011633,94894.0,94893.0,0.10250365]
[1739898272530,0.00011633,94894.0,94893.0,0.10750365]
[1739898272711,0.00011633,94894.0,94893.0,0.15215813]
[1739898273572,0.00011633,94894.0,94893.0,0.14715813]
[1739898273932,0.00011633,94894.0,94893.0,0.10250365]
[1739898273933,0.15818733,94894.0,94893.0,0.10250365]
[1739898274134,0.15818733,94894.0,94891.0,0.1282701]
[1739898274135,0.00011633,94894.0,94891.0,0.1282701]
[1739898274337,0.15818733,94894.0,94891.0,0.1282701]
[1739898274536,0.158074,94892.0,94891.0,0.0001701]
[1739898275681,0.15934982,94892.0,94891.0,0.0001701]
[1739898276085,0.158074,94892.0,94891.0,0.0031701]
[1739898276291,0.308074,94892.0,94891.0,0.0001701]
[1739898276494,4.109974,94892.0,94891.0,0.0031701]
[1739898276694,5.246791,94892.0,94891.0,0.0031701]
[1739898277684,5.26330501,94892.0,94891.0,0.0031701]
[1739898281580,5.26330501,94892.0,94891.0,0.0001701]
[1739898281857,5.2713029,94892.0,94891.0,0.0021701]
[1739898282111,3.9541859,94892.0,94891.0,0.0021701]
[1739898282315,3.6506859,94892.0,94891.0,0.0001701]
[1739898282476,3.6506859,94892.0,94891.0,0.0021701]
[1739898283799,3.6506859,94892.0,94891.0,0.0001701]
[1739898284008,0.5188859,94892.0,94891.0,0.0021701]
[1739898285049,0.3325859,94892.0,94891.0,0.0021701]
[1739898285268,5.2713029,94892.0,94891.0,0.0021701]
[1739898285442,3.1723859,94892.0,94891.0,0.0021701]
[1739898285673,2.97367189,94892.0,94891.0,0.0021701]
[1739898285883,2.34357189,94892.0,94891.0,0.0021701]
[1739898286085,0.58697189,94892.0,94891.0,0.0021701]
[1739898286283,0.52387189,94892.0,94891.0,0.0021701]
[1739898286515,0.50547189,94892.0,94891.0,0.0021701]
[1739898287729,0.48367189,94892.0,94891.0,0.0021701]
[1739898288069,0.308074,94892.0,94891.0,0.0021701]
[1739898288686,0.3245874,94892.0,94891.0,0.0021701]
[1739898289527,0.0165134,94892.0,94891.0,0.0021701]
[1739898289734,0.1745874,94892.0,94891.0,0.0021701]
[1739898291945,0.1745874,94892.0,94891.0,0.0001701]
[1739898292781,0.0165134,94892.0,94891.0,0.0031701]
[1739898292996,0.0165134,94892.0,94891.0,0.0522701]
[1739898293232,0.1745874,94892.0,94891.0,0.0522701]
[1739898293441,0.0165134,94892.0,94891.0,0.0522701]
[1739898293660,0.0165134,94892.0,94891.0,0.2103461]
[1739898293875,0.0003406,94894.0,94893.0,0.158072]
[1739898294092,0.0003406,94894.0,94893.0,0.26057565]
[1739898295971,0.0003406,94894.0,94893.0,0.26257565]
[1739898296262,0.0003406,94894.0,94893.0,0.26057565]
[1739898296587,0.0003406,94894.0,94893.0,0.3650793]
[1739898296785,0.0003406,94894.0,94893.0,0.3630793]
[1739898298142,0.0003406,94894.0,94893.0,0.3680793]
[1739898298344,0.0003406,94894.0,94893.0,0.6926793]
[1739898300139,0.0003406,94894.0,94893.0,0.5346073]
[1739898300745,0.0003406,94894.0,94893.0,0.6926793]
[1739898300984,0.0003406,94894.0,94893.0,0.5346073]
[1739898301186,0.0003406,94894.0,94893.0,0.6926793]
[1739898301796,0.0003406,94894.0,94893.0,0.7691793]
[1739898302353,0.0003406,94894.0,94893.0,0.6111073]
[1739898302633,0.0003406,94894.0,94893.0,0.50860365]
[1739898303016,0.0003406,94894.0,94893.0,0.66667565]
[1739898303446,0.0003406,94894.0,94893.0,0.50860365]
[1739898303650,0.0003406,94894.0,94893.0,0.66667565]
[1739898303828,0.0003406,94894.0,94893.0,0.75934773]
[1739898304690,0.0003406,94894.0,94893.0,0.82994773]
[1739898305259,0.0003406,94894.0,94893.0,0.82494773]
[1739898305660,0.0003406,94894.0,94893.0,0.82994773]
[1739898306231,0.0003406,94894.0,94893.0,1.52564773]
[1739898306437,0.0003406,94894.0,94893.0,1.52064773]
[1739898307471,0.0003406,94924.0,94916.0,0.281034]
[1739898307681,0.00078248,94917.0,94916.0,0.41164105]
[1739898308120,0.00078248,94917.0,94916.0,0.39497438]
[1739898308320,0.00078248,94917.0,94916.0,1.26527438]
[1739898309102,0.00078248,94917.0,94916.0,1.27227438]
[1739898310166,0.00078248,94917.0,94916.0,1.30603652]
[1739898310806,0.00078248,94917.0,94916.0,1.28643652]
[1739898311036,0.00078248,94917.0,94916.0,1.42943652]
[1739898311657,0.00078248,94917.0,94916.0,1.44943652]
[1739898311861,0.00078248,94917.0,94916.0,1.45643652]
[1739898312075,0.00078248,94917.0,94916.0,1.43643652]
[1739898312703,0.00078248,94917.0,94916.0,1.42943652]
[1739898312889,0.00078248,94917.0,94916.0,1.43643652]
[1739898313036,0.00078248,94917.0,94916.0,1.25267438]
[1739898313460,0.00078248,94917.0,94916.0,0.70697438]
[1739898314345,0.00078248,94917.0,94916.0,0.69997438]
[1739898314554,0.00078248,94917.0,94916.0,0.70697438]
[1739898314797,0.00078248,94917.0,94916.0,0.69997438]
[1739898315213,0.00078248,94917.0,94916.0,0.70397438]
[1739898315417,0.00078248,94917.0,94916.0,0.69997438]
[1739898315631,0.00078248,94917.0,94916.0,0.70597438]
[1739898319385,0.15881448,94917.0,94916.0,0.43310365]
[1739898319731,0.00078248,94917.0,94916.0,0.43310365]
[1739898320285,0.15881448,94917.0,94916.0,0.3306]
[1739898320485,0.158051,94906.0,94905.0,0.3246]
[1739898320689,0.14975007,94915.0,94905.0,0.45956365]
[1739898320897,0.00078248,94917.0,94906.0,0.10250365]
[1739898321076,0.00078248,94917.0,94916.0,0.158034]
[1739898321253,0.00078248,94917.0,94916.0,0.10250365]
[1739898321455,0.15881448,94917.0,94916.0,0.10950365]
[1739898321701,0.00078248,94917.0,94916.0,0.10250365]
[1739898322279,0.15881448,94917.0,94916.0,0.10250365]
[1739898322506,0.210715,94915.0,94905.0,0.3246]
[1739898322708,0.158041,94912.0,94906.0,0.15603755]
[1739898322909,0.158036,94915.0,94907.0,0.158049]
[1739898323194,0.00078248,94917.0,94916.0,0.158034]
[1739898323391,0.00078248,94917.0,94916.0,0.26053765]
[1739898323597,0.00078248,94917.0,94916.0,0.71082017]
[1739898323909,0.00078248,94917.0,94916.0,0.71482017]
[1739898324310,0.00078248,94917.0,94916.0,1.42105625]
[1739898324535,0.00078248,94917.0,94916.0,1.51725625]
[1739898324740,0.00078248,94917.0,94916.0,1.48372017]
[1739898324943,0.00078248,94917.0,94916.0,1.34072017]
[1739898325094,0.00078248,94917.0,94916.0,1.33372017]
[1739898325538,0.00078248,94917.0,94916.0,1.34072017]
[1739898325805,0.00078248,94917.0,94916.0,1.33372017]
[1739898327074,0.00078248,94917.0,94916.0,1.34072017]
[1739898327504,0.00078248,94917.0,94916.0,1.33372017]
[1739898327709,0.00078248,94917.0,94916.0,1.34072017]
[1739898327916,0.00078248,94917.0,94916.0,1.33372017]
[1739898328341,0.00078248,94917.0,94916.0,1.34106057]
[1739898328552,0.00078248,94917.0,94916.0,1.33406057]
[1739898328956,0.00078248,94917.0,94916.0,1.34106057]
[1739898330112,0.00078248,94917.0,94916.0,1.33406057]
[1739898330522,0.00078248,94917.0,94916.0,1.34106057]
[1739898330769,0.00078248,94917.0,94916.0,1.33406057]
[1739898330977,0.00078248,94917.0,94916.0,1.34106057]
[1739898331465,0.00078248,94917.0,94916.0,1.33406057]
[1739898331675,0.00078248,94917.0,94916.0,1.34106057]
[1739898333457,0.00078248,94917.0,94916.0,1.36406057]
[1739898333861,0.00078248,94917.0,94916.0,1.34106057]
[1739898335354,0.02904209,94961.0,94916.0,1.18302657]
[1739898335569,0.14975007,94930.0,94917.0,0.1609968]
[1739898335779,0.14975007,94930.0,94918.0,0.535308]
[1739898335991,0.01650519,94932.0,94925.0,0.158017]
[1739898336193,0.01650519,94932.0,94926.0,0.10250365]
[1739898336626,0.158011,94930.0,94926.0,0.10250365]
[1739898336834,0.158009,94931.0,94926.0,0.10250365]
[1739898337022,0.01650519,94932.0,94926.0,0.10250365]
[1739898337250,0.17451319,94932.0,94926.0,0.10250365]
[1739898337465,0.158016,94927.0,94926.0,0.10950365]
[1739898337681,0.01650519,94932.0,94918.0,0.3246]
[1739898337882,0.01650519,94932.0,94919.0,0.16191851]
[1739898338088,0.01650519,94932.0,94926.0,0.007]
[1739898338300,0.01650519,94932.0,94928.0,0.158012]
[1739898338524,0.01650519,94932.0,94931.0,0.158009]
[1739898338727,0.01650519,94932.0,94931.0,0.58511265]
[1739898338967,0.01095976,94948.0,94940.0,0.157993]
[1739898339166,0.01650494,94940.0,94938.0,0.210663]
[1739898339371,0.01650494,94940.0,94939.0,0.210661]
[1739898339576,0.01650494,94940.0,94939.0,0.31316465]
[1739898340828,0.01650494,94940.0,94939.0,0.31816465]
[1739898341033,0.01650494,94940.0,94939.0,0.3766578]
[1739898341687,0.01650494,94940.0,94939.0,0.1659968]
[1739898342112,0.17449894,94940.0,94939.0,0.1659968]
[1739898342327,0.17449894,94940.0,94939.0,0.005]
[1739898342855,0.158006,94933.0,94932.0,0.3246]
[1739898343071,0.158006,94933.0,94932.0,0.42710365]
[1739898343283,0.15664935,94933.0,94932.0,0.3246]
[1739898343919,5.09536635,94933.0,94932.0,0.3246]
[1739898344429,0.158031,94918.0,94917.0,0.3246]
[1739898344647,0.158032,94917.0,94906.0,0.15805]
[1739898345878,0.158032,94917.0,94903.0,0.210741]
[1739898346094,0.17454,94917.0,94903.0,0.210741]
[1739898346441,0.17454,94917.0,94907.0,0.158048]
[1739898346689,0.17454,94917.0,94905.0,0.210736]
[1739898346690,0.17454,94917.0,94905.0,0.158051]
[1739898346892,0.17454,94917.0,94916.0,0.0063404]
[1739898348205,0.18497783,94917.0,94916.0,0.0063404]
[1739898349336,0.18497783,94917.0,94916.0,0.0003404]
[1739898349487,0.18497783,94917.0,94916.0,0.0063404]
[1739898349696,0.26757783,94917.0,94916.0,0.0063404]
[1739898349925,0.41757783,94917.0,94916.0,0.0063404]
[1739898350362,0.41757783,94917.0,94916.0,0.0003404]
[1739898350535,0.41757783,94917.0,94916.0,0.0033404]
[1739898350901,0.41757783,94917.0,94916.0,0.0003404]
[1739898351101,0.41757783,94917.0,94916.0,0.0033404]
[1739898352574,0.41757783,94917.0,94916.0,0.0003404]
[1739898353337,0.43845524,94917.0,94916.0,0.0003404]
[1739898355364,0.17694583,94917.0,94916.0,0.0003404]
[1739898355607,0.01043783,94917.0,94916.0,0.26087805]
[1739898355809,0.158016,94928.0,94916.0,0.10284405]
[1739898356220,0.00030277,94933.0,94917.0,0.10250365]
[1739898356543,0.14975007,94930.0,94917.0,0.10250365]
[1739898356743,0.210685,94928.0,94917.0,0.10250365]
[1739898356943,0.158024,94923.0,94918.0,0.05874781]
[1739898357270,0.210685,94928.0,94918.0,0.05874781]
[1739898357271,0.158015,94928.0,94921.0,0.158025]
[1739898357445,0.36043207,94930.0,94919.0,0.10250365]
[1739898357650,0.14975007,94930.0,94919.0,0.10250365]
[1739898358280,0.14975007,94930.0,94916.0,0.0003404]
[1739898358484,0.158032,94917.0,94916.0,0.0003404]
[1739898358698,0.01650653,94928.0,94916.0,0.0003404]
[1739898359118,0.158032,94917.0,94916.0,0.0003404]
[1739898359499,0.158031,94918.0,94916.0,0.0003404]
[1739898359698,0.158032,94917.0,94916.0,0.0043404]
[1739898359859,0.158032,94917.0,94916.0,0.0003404]
[1739898360280,0.0165073,94918.0,94916.0,0.0033404]
[1739898360501,0.0165073,94918.0,94917.0,0.29332969]
[1739898360750,0.0165073,94918.0,94917.0,0.45989769]
[1739898360950,0.1745383,94918.0,94917.0,0.3246]
[1739898361276,0.13785757,94920.0,94917.0,0.3246]
[1739898361483,0.158031,94918.0,94917.0,0.3246]
[1739898361606,0.210701,94921.0,94917.0,0.3246]
[1739898361808,0.158031,94918.0,94917.0,0.3246]
[1739898362090,0.308031,94918.0,94917.0,0.3246]
[1739898362204,0.308032,94917.0,94916.0,0.0003404]
[1739898362414,5.269749,94917.0,94916.0,0.0003404]
[1739898362636,5.269749,94917.0,94894.0,0.3246]
[1739898362637,0.158069,94895.0,94894.0,0.3246]
[1739898362843,0.331071,94894.0,94893.0,0.0003406]
[1739898363041,0.158107,94872.0,94871.0,0.3246]
[1739898363243,0.210808,94873.0,94853.0,0.3246]
[1739898363453,0.158114,94869.0,94854.0,0.10250365]
[1739898363672,0.15,94876.0,94854.0,0.10250365]
[1739898363872,0.14975007,94870.0,94854.0,0.10250365]
[1739898364073,0.210817,94869.0,94854.0,0.2050073]
[1739898364272,0.210819,94868.0,94854.0,0.2050073]
[1739898364478,0.14975007,94870.0,94854.0,0.2050073]
[1739898364672,0.158126,94862.0,94854.0,0.10250365]
[1739898364932,0.16046786,94870.0,94854.0,0.10250365]
[1739898365360,0.15,94869.0,94854.0,0.10250365]
[1739898365619,0.158136,94855.0,94854.0,0.10250365]
[1739898365780,0.158131,94858.0,94854.0,0.10250365]
[1739898366396,0.210843,94858.0,94853.0,0.33004208]
[1739898366587,0.14975007,94864.0,94853.0,0.33004208]
[1739898366588,0.158137,94854.0,94853.0,0.33004208]
[1739898366839,0.158137,94854.0,94853.0,0.32504208]
[1739898367017,0.01651781,94866.0,94853.0,0.32504208]
[1739898367400,0.158136,94855.0,94853.0,0.32504208]
[1739898367601,0.158119,94865.0,94853.0,0.32504208]
[1739898367825,0.158136,94855.0,94853.0,0.32504208]
[1739898368274,0.158136,94855.0,94854.0,0.005]
[1739898368454,0.158136,94855.0,94853.0,0.32504208]
[1739898368806,0.210842,94858.0,94853.0,0.32504208]
[1739898368807,0.158133,94857.0,94853.0,0.33004208]
[1739898369009,0.001,94865.0,94853.0,0.35804629]
[1739898369435,0.001,94865.0,94854.0,0.005]
[1739898369436,0.001,94855.0,94854.0,0.005]
[1739898369636,0.159136,94855.0,94853.0,0.32504208]
[1739898369841,0.158137,94854.0,94853.0,0.32504208]
[1739898370046,0.158137,94854.0,94853.0,0.33004208]
[1739898370589,0.001,94855.0,94853.0,0.33004208]
[1739898371215,0.001,94857.0,94853.0,0.32504208]
[1739898371216,0.158137,94854.0,94853.0,0.32504208]
[1739898372249,0.158137,94854.0,94853.0,0.33204208]
[1739898372452,0.158137,94854.0,94853.0,0.00044208]
[1739898372453,0.308137,94854.0,94853.0,0.00044208]
[1739898375900,0.308137,94854.0,94853.0,0.00061238]
[1739898376301,0.32465645,94854.0,94853.0,0.00061238]
[1739898377110,0.01651945,94854.0,94853.0,0.00061238]
[1739898377725,0.17465645,94854.0,94853.0,0.00061238]
[1739898378469,0.15505645,94854.0,94853.0,0.00361238]
[1739898378795,0.15505645,94854.0,94853.0,0.00061238]
[1739898378796,0.30505645,94854.0,94853.0,0.00061238]
[1739898379011,0.30505645,94854.0,94853.0,0.00361238]
[1739898379197,0.210824,94866.0,94853.0,0.00361238]
[1739898379453,0.23533393,94865.0,94853.0,0.00361238]
[1739898379660,0.158131,94858.0,94853.0,0.00361238]
[1739898379949,0.02450693,94865.0,94854.0,0.01617574]
[1739898380082,0.01651908,94865.0,94854.0,0.10250365]
[1739898380302,0.01651908,94865.0,94855.0,0.10250365]
[1739898380507,0.158137,94854.0,94853.0,0.00061238]
[1739898381807,0.01651908,94865.0,94853.0,0.00061238]
[1739898381808,0.210835,94861.0,94853.0,0.00061238]
[1739898382006,0.01651908,94865.0,94854.0,0.18202489]
[1739898382193,0.01071779,94870.0,94854.0,0.18202489]
[1739898382332,0.01071779,94870.0,94869.0,0.158112]
[1739898382532,0.15,94877.0,94867.0,0.210819]
[1739898382738,0.15,94877.0,94868.0,0.0210819]
[1739898382938,0.01065486,94885.0,94870.0,0.210814]
[1739898383152,0.14975007,94900.0,94871.0,0.42710365]
[1739898383346,0.0209249,94889.0,94871.0,0.42710365]
[1739898383555,0.158094,94881.0,94871.0,0.42710365]
[1739898383781,0.158094,94881.0,94871.0,0.58421265]
[1739898384232,0.158095,94880.0,94871.0,0.42610365]
[1739898384678,0.158106,94873.0,94871.0,0.42610365]
[1739898384880,0.210794,94880.0,94872.0,0.04261037]
[1739898385012,0.158103,94875.0,94873.0,0.10250365]
[1739898385215,0.158104,94874.0,94873.0,0.10250365]
[1739898385429,0.158107,94872.0,94871.0,0.3246]
[1739898385658,0.158107,94872.0,94871.0,0.3266]
[1739898386717,0.158107,94872.0,94871.0,0.3246]
[1739898387432,0.158107,94872.0,94855.0,0.0791]
[1739898387433,0.210797,94878.0,94856.0,0.3246]
[1739898387685,0.15,94877.0,94871.0,0.004]
[1739898387833,0.01651611,94885.0,94871.0,0.004]
[1739898388195,0.01651611,94885.0,94871.0,0.10650365]
[1739898388398,0.158088,94884.0,94873.0,0.158105]
[1739898388599,0.158087,94884.0,94874.0,0.158103]
[1739898388799,0.01651611,94885.0,94874.0,0.158103]
[1739898388954,0.01651611,94885.0,94874.0,0.10250365]
[1739898389162,0.210783,94884.0,94874.0,0.10250365]
[1739898389367,0.158091,94882.0,94875.0,0.0115154]
[1739898389793,0.158091,94882.0,94874.0,0.10250365]
[1739898389794,0.210783,94884.0,94874.0,0.10250365]
[1739898389994,0.01651611,94885.0,94874.0,0.10250365]
[1739898390154,0.210783,94884.0,94874.0,0.10250365]
[1739898390360,0.01651611,94885.0,94874.0,0.10250365]
[1739898390562,0.15,94883.0,94856.0,0.3246]
[1739898390766,0.15811,94871.0,94862.0,0.158124]
[1739898390969,0.158102,94875.0,94874.0,0.001]
[1739898391173,0.2108,94877.0,94857.0,0.04838336]
[1739898391368,0.360785,94883.0,94858.0,0.10250365]
[1739898391569,0.308102,94875.0,94874.0,0.001]
[1739898391774,0.158122,94864.0,94858.0,0.10250365]
[1739898392052,0.158122,94864.0,94859.0,0.3246]
[1739898392193,0.210805,94874.0,94860.0,0.10250365]
[1739898392399,0.158122,94864.0,94860.0,0.10250365]
[1739898392597,0.15,94882.0,94860.0,0.10250365]
[1739898392861,0.15,94880.0,94860.0,0.10250365]
[1739898393017,0.15,94878.0,94874.0,0.003]
[1739898393222,0.308102,94875.0,94874.0,0.003]
[1739898393445,0.158114,94868.0,94860.0,0.26063065]
[1739898393650,0.001,94864.0,94860.0,0.26663065]
[1739898393995,0.158117,94867.0,94860.0,0.10250365]
[1739898394194,0.15812,94865.0,94859.0,0.3246]
[1739898394398,0.22204,94882.0,94859.0,0.42710365]
[1739898394594,0.158119,94866.0,94859.0,0.42710365]
[1739898394897,0.001,94864.0,94860.0,0.006]
[1739898396186,0.07204,94875.0,94866.0,0.158117]
[1739898396385,0.158106,94873.0,94865.0,0.157119]
[1739898396589,0.01651654,94877.0,94859.0,0.43310365]
[1739898396590,0.15,94874.0,94859.0,0.43310365]
[1739898396772,0.15,94874.0,94860.0,0.10250365]
[1739898396950,0.15,94874.0,94867.0,0.158114]
[1739898397151,0.15,94874.0,94861.0,0.210834]
[1739898397357,0.15,94874.0,94862.0,0.10250365]
[1739898397657,0.21081,94872.0,94865.0,0.004]
[1739898397913,0.158111,94871.0,94863.0,0.158122]
[1739898398106,0.15,94874.0,94867.0,0.158114]
[1739898398334,0.15,94875.0,94869.0,0.158112]
[1739898398522,0.158104,94874.0,94867.0,0.158115]
[1739898398891,0.01651654,94877.0,94876.0,0.158101]
[1739898399092,0.210767,94892.0,94874.0,0.0756]
[1739898399295,0.01651546,94890.0,94880.0,0.158093]
[1739898399497,0.01651546,94890.0,94874.0,0.17810365]
[1739898399936,0.01651546,94890.0,94874.0,0.33620765]
[1739898400143,0.15809,94883.0,94874.0,0.33620765]
[1739898400346,0.0003406,94876.0,94874.0,0.37705122]
[1739898400749,0.0003406,94876.0,94874.0,0.21894722]
[1739898400886,0.0003406,94876.0,94875.0,0.158102]
[1739898401066,0.0003406,94876.0,94874.0,0.21894722]
[1739898401949,0.0003406,94876.0,94874.0,0.37705122]
[1739898402067,0.0003406,94876.0,94875.0,0.21688822]
[1739898402692,0.0003406,94876.0,94875.0,0.36799187]
[1739898403821,0.0003406,94876.0,94875.0,0.70815563]
[1739898404019,0.0003406,94876.0,94875.0,0.78415563]
[1739898404452,0.0003406,94876.0,94875.0,1.47985563]
[1739898404674,0.0003406,94893.0,94892.0,0.287174]
[1739898404872,0.0003406,94893.0,94892.0,0.76407295]
[1739898405047,0.0003406,94893.0,94892.0,0.77105691]
[1739898405606,0.0003406,94893.0,94892.0,0.92105691]
[1739898406016,0.0003406,94893.0,94892.0,0.92149899]
[1739898407038,0.0003406,94893.0,94892.0,0.92849899]
[1739898407292,0.0003406,94893.0,94892.0,0.92149899]
[1739898407645,0.0003406,94893.0,94892.0,0.92849899]
[1739898407850,0.0003406,94893.0,94892.0,0.94449899]
[1739898409175,0.0003406,94893.0,94892.0,0.95149899]
[1739898409349,0.0003406,94893.0,94892.0,0.94449899]
[1739898409777,6e-07,94893.0,94892.0,1.51719899]
[1739898409970,0.0001703,94921.0,94920.0,0.286227]
[1739898410171,0.0001703,94921.0,94920.0,0.7397248]
[1739898410748,0.0001703,94921.0,94920.0,1.2854248]
[1739898412401,0.0001703,94921.0,94920.0,1.2924248]
[1739898412600,0.0001703,94921.0,94920.0,1.2854248]
[1739898412808,0.0001703,94921.0,94920.0,1.2924248]
[1739898415840,0.0001703,94921.0,94920.0,1.2854248]
[1739898415991,0.0001703,94921.0,94920.0,1.2924248]
[1739898416191,0.157988,94944.0,94920.0,1.1343978]
[1739898416395,0.157988,94944.0,94936.0,0.158]
[1739898416600,0.157986,94945.0,94937.0,0.10250365]
[1739898416757,0.157988,94944.0,94937.0,0.10250365]
[1739898417259,0.01050911,94944.0,94937.0,0.10250365]
[1739898417486,0.157987,94945.0,94938.0,0.0497953]
[1739898417691,0.157999,94937.0,94936.0,0.002]
[1739898417901,0.01064382,94944.0,94936.0,0.002]
[1739898418305,0.157994,94940.0,94936.0,0.002]
[1739898418470,0.01064382,94944.0,94936.0,0.002]
[1739898418678,0.157999,94937.0,94936.0,0.002]
[1739898418884,0.01064382,94944.0,94922.0,0.10250365]
[1739898419081,0.15,94939.0,94923.0,0.07618945]
[1739898419284,0.307997,94938.0,94937.0,0.002]
[1739898419491,0.15,94938.0,94924.0,0.10250365]
[1739898419692,0.21067,94936.0,94924.0,0.10250365]
[1739898420096,0.21067,94936.0,94925.0,0.158018]
[1739898420294,0.15,94938.0,94926.0,0.05878622]
[1739898420509,0.158003,94935.0,94926.0,0.21680322]
[1739898420714,0.15,94938.0,94926.0,0.05878622]
[1739898420962,0.01064382,94944.0,94937.0,0.002]
[1739898421164,0.01064382,94944.0,94941.0,0.157992]
[1739898421335,0.01064382,94944.0,94941.0,0.02624956]
[1739898421685,0.01064382,94944.0,94937.0,0.10450365]
[1739898421836,0.157989,94943.0,94937.0,0.10450365]
[1739898422039,0.01064382,94944.0,94937.0,0.10450365]
[1739898422288,0.157991,94942.0,94937.0,0.10250365]
[1739898422495,0.01064382,94944.0,94929.0,0.3246]
[1739898422693,0.158011,94930.0,94929.0,0.3246]
[1739898422895,0.15,94939.0,94929.0,0.3246]
[1739898423079,0.158006,94933.0,94929.0,0.3246]
[1739898423280,0.15,94934.0,94929.0,0.3246]
[1739898423485,0.158011,94930.0,94929.0,0.3246]
[1739898423687,0.15,94934.0,94929.0,0.3246]
[1739898423889,0.158009,94932.0,94929.0,0.3246]
[1739898424177,0.15,94934.0,94929.0,0.3246]
[1739898424396,0.158006,94933.0,94929.0,0.3246]
[1739898424568,0.15,94934.0,94929.0,0.3246]
[1739898424817,60.0,95158.0,94929.0,0.3246]